bitfinex/quotes_SOLUSD_20240717
["timestamp","ask_amount","ask_price","bid_price","bid_amount"]
[1721196032015,1.54457668,161.89,161.82,0.17]
[1721196032226,1.54457668,161.89,161.81,29.34]
[1721196032442,1.54457668,161.89,161.82,1.40558695]
[1721196032621,1.54457668,161.89,161.83,1.23558089]
[1721196033322,21.8019,161.9,161.83,1.23558089]
[1721196033742,1.54431217,161.89,161.82,0.17]
[1721196034539,1.54431217,161.89,161.78,29.34]
[1721196034745,6.1782,161.86,161.78,29.34]
[1721196035045,1.5449125,161.85,161.78,29.34]
[1721196036024,1.5448781,161.86,161.79,1.23590248]
[1721196036323,1.54485973,161.85,161.78,29.34]
[1721196036537,1.54485973,161.85,161.79,1.2358763]
[1721196036868,1.54485973,161.85,161.78,29.34]
[1721196036869,1.54485973,161.85,161.8,1.23587758]
[1721196037241,6.1782,161.86,161.78,29.34]
[1721196037539,1.54490611,161.85,161.78,29.34]
[1721196040131,6.1782,161.86,161.78,29.34]
[1721196040335,1.54490649,161.85,161.78,29.34]
[1721196041332,6.1778,161.87,161.78,29.34]
[1721196041542,1.54490166,161.86,161.78,29.34]
[1721196041744,1.54490301,161.85,161.78,29.34]
[1721196042248,1.54490301,161.85,161.82,14.68]
[1721196042456,1.54490301,161.85,161.77,0.17]
[1721196042750,6.1789,161.84,161.81,14.68]
[1721196042935,1.54496554,161.83,161.8,14.68]
[1721196043834,20.8586,161.85,161.8,14.68]
[1721196044028,20.8586,161.85,161.76,58.89]
[1721196044228,6.1786,161.85,161.76,0.17]
[1721196044748,21.6608,161.87,161.74,29.36]
[1721196045055,6.1793,161.83,161.73,2.2990997]
[1721196045260,1.54524048,161.82,161.73,2.2990997]
[1721196045562,7.72494048,161.82,161.73,2.2990997]
[1721196045717,6.5412,161.8,161.71,35.70901333]
[1721196045917,1.54545974,161.79,161.72,1.23636779]
[1721196047760,1.54545974,161.79,161.71,35.70901333]
[1721196048145,1.54545974,161.79,161.71,29.36]
[1721196049068,1.54545974,161.79,161.68,35.7068448]
[1721196049380,15.7535,161.74,161.65,29.36]
[1721196049672,17.29941288,161.74,161.65,35.71113573]
[1721196049841,1.54591288,161.73,161.65,35.71113573]
[1721196050546,1.54591288,161.73,161.65,6.35113573]
[1721196050758,1.54591288,161.73,161.65,35.71113573]
[1721196051359,15.7535,161.74,161.66,1.40672742]
[1721196051769,1.54569179,161.77,161.68,29.36]
[1721196051945,15.9103,161.78,161.69,1.40644954]
[1721196052269,1.54557086,161.77,161.69,1.40644954]
[1721196053163,15.9103,161.78,161.7,10.0]
[1721196053466,15.9103,161.78,161.71,0.34]
[1721196053843,15.9103,161.78,161.71,0.17]
[1721196054343,15.9103,161.78,161.7,0.34]
[1721196054554,15.9103,161.78,161.71,1.23636436]
[1721196054755,15.9103,161.78,161.72,0.17]
[1721196055071,15.9103,161.78,161.72,1.40636481]
[1721196055875,6.5412,161.8,161.74,29.36]
[1721196056163,16.1784,161.82,161.75,1.4060682]
[1721196056864,6.1746,161.84,161.75,21.4060682]
[1721196057181,6.1746,161.84,161.77,29.36]
[1721196057469,6.1746,161.84,161.78,1.40585042]
[1721196058254,6.1746,161.84,161.78,0.17]
[1721196058455,6.1746,161.84,161.78,0.34]
[1721196058751,6.1746,161.84,161.78,0.17]
[1721196060246,1.54485714,161.83,161.77,29.36]
[1721196060447,1.54485714,161.83,161.78,1.23600805]
[1721196060684,1.54485714,161.83,161.77,29.36]
[1721196060882,1.54485714,161.83,161.76,0.17]
[1721196061053,1.54485714,161.83,161.75,20.34]
[1721196061464,1.54485714,161.83,161.75,20.17]
[1721196061681,1.54485714,161.83,161.75,0.17]
[1721196062057,1.5450328,161.82,161.75,0.17]
[1721196062581,1.54504928,161.83,161.75,0.17]
[1721196063055,1.54501277,161.82,161.75,0.17]
[1721196063979,1.54507785,161.83,161.75,0.17]
[1721196064161,1.54507875,161.82,161.75,0.17]
[1721196064360,1.54507875,161.82,161.74,29.36]
[1721196064570,1.54507875,161.82,161.75,1.23618495]
[1721196064778,1.54507875,161.82,161.74,29.36]
[1721196065173,1.54523088,161.83,161.74,29.36]
[1721196065374,6.1746,161.84,161.74,29.36]
[1721196065587,1.54519378,161.83,161.74,29.36]
[1721196065885,6.1746,161.84,161.74,29.36]
[1721196066082,1.54520615,161.83,161.75,0.17]
[1721196066285,12.3535,161.84,161.75,0.17]
[1721196066465,1.54524771,161.83,161.74,29.36]
[1721196066667,12.3535,161.84,161.74,29.36]
[1721196066915,1.545231,161.83,161.74,29.36]
[1721196067066,12.3535,161.84,161.74,29.36]
[1721196067382,1.54524271,161.83,161.74,29.36]
[1721196067875,1.54524271,161.83,161.75,0.17]
[1721196068388,1.54524271,161.83,161.75,1.23618663]
[1721196068569,6.1746,161.84,161.77,29.36]
[1721196068766,7.71960826,161.84,161.78,1.23600661]
[1721196068967,6.1746,161.84,161.77,29.36]
[1721196069165,15.8561,161.86,161.78,0.17]
[1721196069363,15.8561,161.86,161.78,1.40581247]
[1721196069766,1.54477159,161.85,161.78,0.17]
[1721196070174,15.8561,161.86,161.78,1.40584044]
[1721196070881,15.8561,161.86,161.8,29.36]
[1721196071274,15.8561,161.86,161.78,0.17]
[1721196071275,1.54467428,161.85,161.78,0.17]
[1721196071682,1.54467428,161.85,161.78,1.23597645]
[1721196071871,15.8561,161.86,161.79,0.17]
[1721196072074,15.8561,161.86,161.79,1.40580412]
[1721196072465,1.54477275,161.85,161.79,0.17]
[1721196072685,1.54477275,161.85,161.78,0.17]
[1721196073070,17.40092028,161.86,161.78,0.17]
[1721196073266,17.40092028,161.86,161.78,1.40580963]
[1721196073471,15.8561,161.86,161.78,0.17]
[1721196073689,1.54467698,161.85,161.78,0.17]
[1721196073992,1.54467698,161.85,161.78,1.40589726]
[1721196074286,1.54467698,161.85,161.78,0.17]
[1721196074488,1.54467698,161.85,161.78,1.40592427]
[1721196074700,1.54467698,161.85,161.78,0.17]
[1721196075073,1.54467698,161.85,161.78,1.40591715]
[1721196075466,17.40099475,161.86,161.78,1.40591715]
[1721196075666,15.8561,161.86,161.78,1.40591715]
[1721196077193,1.54478733,161.85,161.78,1.40591715]
[1721196078180,1.54478733,161.85,161.78,0.17]
[1721196078381,1.54478733,161.85,161.77,29.36]
[1721196078782,7.72338733,161.85,161.76,0.17]
[1721196078986,6.1653,161.84,161.75,20.0]
[1721196079173,1.54519462,161.83,161.74,29.36]
[1721196079377,1.54522483,161.82,161.74,29.36]
[1721196080283,1.54520398,161.81,161.75,0.17]
[1721196080599,1.54521199,161.83,161.75,0.17]
[1721196080800,1.54520632,161.82,161.75,0.17]
[1721196081168,15.7776,161.81,161.72,6.35562794]
[1721196081373,1.54544465,161.8,161.71,29.36]
[1721196081592,1.54538527,161.79,161.72,20.0]
[1721196081980,1.54538527,161.79,161.73,1.23640778]
[1721196082183,1.54550354,161.8,161.74,1.23640283]
[1721196082487,1.54550354,161.8,161.72,20.0]
[1721196082691,1.54550354,161.8,161.73,1.23624716]
[1721196082890,1.54550354,161.8,161.74,1.23623267]
[1721196083498,1.54550354,161.8,161.72,20.0]
[1721196083685,1.54550354,161.8,161.73,1.4062473]
[1721196083996,1.54550354,161.8,161.74,1.23624712]
[1721196084207,1.54550354,161.8,161.73,0.17]
[1721196084804,1.54550354,161.8,161.73,1.40624745]
[1721196085173,1.54550354,161.8,161.73,0.17]
[1721196089278,1.54531125,161.79,161.73,0.17]
[1721196089479,6.0081,161.78,161.71,29.36]
[1721196089688,1.54560163,161.77,161.68,29.36]
[1721196089902,1.54573057,161.76,161.68,29.36]
[1721196090106,1.5457608,161.77,161.68,39.36]
[1721196090303,1.5457608,161.77,161.75,14.69]
[1721196091013,6.0081,161.78,161.76,14.69]
[1721196091609,6.0081,161.78,161.77,14.69]
[1721196092181,6.0081,161.78,161.71,1.23629453]
[1721196092376,6.0081,161.78,161.72,29.54]
[1721196092582,6.0081,161.78,161.73,1.23627981]
[1721196092882,6.0081,161.78,161.74,1.40623168]
[1721196095087,1.54540917,161.8,161.74,1.40623168]
[1721196095407,15.7776,161.81,161.75,1.2362073]
[1721196095589,15.7776,161.81,161.76,0.17]
[1721196095789,15.7776,161.81,161.76,1.40608088]
[1721196096108,17.3226895,161.81,161.76,0.17]
[1721196096282,17.3226895,161.81,161.72,29.37]
[1721196096485,17.3226895,161.81,161.73,0.17]
[1721196096790,17.3226895,161.81,161.73,0.34]
[1721196097196,17.3226895,161.81,161.73,0.17]
[1721196098590,17.3226895,161.81,161.73,1.40622134]
[1721196098814,15.7776,161.81,161.73,11.40622134]
[1721196099717,15.7776,161.81,161.75,29.37]
[1721196099895,6.0146,161.82,161.76,1.40597492]
[1721196100091,15.9627,161.85,161.77,10.0]
[1721196100305,15.9627,161.85,161.78,29.54]
[1721196100515,17.50740344,161.85,161.78,29.71]
[1721196101193,15.9627,161.85,161.78,29.71]
[1721196101394,17.50744997,161.85,161.78,29.71]
[1721196101607,15.9627,161.85,161.78,29.71]
[1721196102506,17.50740438,161.85,161.78,29.54]
[1721196102707,17.50740438,161.85,161.78,29.37]
[1721196102899,17.50740438,161.85,161.75,29.37]
[1721196103093,17.50740438,161.85,161.76,0.17]
[1721196104007,17.50740438,161.85,161.76,1.40601273]
[1721196104620,17.50740438,161.85,161.76,0.17]
[1721196104810,15.9627,161.85,161.78,29.37]
[1721196105011,15.9627,161.85,161.79,1.23582542]
[1721196105196,15.9627,161.85,161.8,1.23582286]
[1721196106006,15.9627,161.85,161.78,29.37]
[1721196106303,15.9627,161.85,161.79,0.17]
[1721196107194,15.9627,161.85,161.79,1.40579259]
[1721196107724,22.6081,161.9,161.81,29.37]
[1721196107928,22.6081,161.9,161.82,11.40555267]
[1721196108215,22.6081,161.9,161.83,1.40539314]
[1721196108425,22.6081,161.9,161.84,0.17]
[1721196109815,22.6081,161.9,161.83,0.17]
[1721196110121,22.6081,161.9,161.83,1.40543669]
[1721196110806,22.6081,161.9,161.84,1.23540203]
[1721196111005,22.6081,161.9,161.85,0.17]
[1721196111331,22.6081,161.9,161.85,1.40533784]
[1721196111625,22.6081,161.9,161.85,0.17]
[1721196111944,22.6081,161.9,161.82,20.0]
[1721196112121,22.6081,161.9,161.83,0.17]
[1721196112331,22.6081,161.9,161.82,20.0]
[1721196112496,22.6081,161.9,161.83,1.23556806]
[1721196113430,22.6081,161.9,161.81,29.37]
[1721196113636,22.6081,161.9,161.82,0.17]
[1721196114125,22.6081,161.9,161.81,29.37]
[1721196114432,14.67,161.89,161.84,14.67]
[1721196114607,1.5446723,161.88,161.85,14.67]
[1721196114810,1.54459756,161.88,161.85,14.67]
[1721196115332,22.6081,161.9,161.85,14.67]
[1721196115627,22.6081,161.9,161.84,14.67]
[1721196115628,14.67,161.89,161.84,14.67]
[1721196115822,14.67,161.89,161.8,1.23566928]
[1721196115823,1.54466203,161.88,161.85,14.67]
[1721196116304,1.54466203,161.88,161.84,14.67]
[1721196118109,1.54466203,161.88,161.85,14.67]
[1721196118309,1.54466203,161.88,161.78,28.71429208]
[1721196118310,1.54463916,161.87,161.84,14.67]
[1721196118516,1.54463916,161.87,161.78,16.4766]
[1721196118834,1.54463916,161.87,161.84,14.67]
[1721196119232,1.5446915,161.88,161.84,14.67]
[1721196121714,1.5446915,161.88,161.86,14.67]
[1721196122048,22.6081,161.9,161.86,14.67]
[1721196122731,22.6081,161.9,161.87,14.67]
[1721196123043,22.6081,161.9,161.88,14.67]
[1721196123748,22.6081,161.9,161.87,14.67]
[1721196125627,22.6081,161.9,161.88,14.67]
[1721196126338,22.489,161.96,161.85,17.58276163]
[1721196126666,24.03304478,161.96,161.86,21.57523583]
[1721196126972,1.54375659,161.95,161.87,21.23500527]
[1721196127258,1.54375659,161.95,161.91,14.67]
[1721196128138,14.67,161.94,161.82,20.0]
[1721196128344,1.54420326,161.94,161.9,14.67]
[1721196128653,1.54420326,161.94,161.91,14.67]
[1721196128852,1.54420326,161.94,161.92,14.67]
[1721196129052,22.489,161.96,161.92,14.67]
[1721196129053,1.5439637,161.95,161.92,14.67]
[1721196129254,22.489,161.96,161.94,14.67]
[1721196130241,22.489,161.96,161.95,14.67]
[1721196130652,22.489,161.96,161.94,14.67]
[1721196133661,1.54377695,161.95,161.92,14.67]
[1721196135256,22.489,161.96,161.93,14.67]
[1721196136158,1.54377518,161.95,161.93,14.67]
[1721196136345,1.54377518,161.95,161.92,14.67]
[1721196137242,24.03277711,161.96,161.93,14.67]
[1721196137954,24.03277711,161.96,161.94,14.67]
[1721196138171,1.54377558,161.95,161.93,14.67]
[1721196138335,24.03277725,161.96,161.93,14.67]
[1721196138542,15.4285,162.04,161.95,14.67]
[1721196138543,42.4461,162.0,161.95,14.67]
[1721196138865,1.54361072,161.99,161.95,14.67]
[1721196139040,36.2732,162.0,161.95,14.67]
[1721196139041,1.54358169,161.98,161.95,14.67]
[1721196139442,6.172,162.03,161.97,14.67]
[1721196139647,1.54338516,162.01,161.98,14.67]
[1721196140868,1.54338516,162.01,161.99,14.67]
[1721196142656,0.8379433,162.02,161.99,14.67]
[1721196142961,0.8379433,162.02,162.01,14.67]
[1721196145759,0.8379433,162.02,162.01,15.90423975]
[1721196146164,0.8379433,162.02,162.01,14.67]
[1721196148476,0.8379433,162.02,162.01,14.84]
[1721196152159,0.8379433,162.02,162.01,14.67]
[1721196153062,0.8379433,162.02,161.97,11.23428951]
[1721196153270,0.8379433,162.02,162.01,14.67]
[1721196153873,0.8379433,162.02,162.01,14.84]
[1721196155566,0.8379433,162.02,162.01,14.67]
[1721196156367,0.8379433,162.02,162.01,14.84]
[1721196158157,0.8379433,162.02,162.01,16.07416485]
[1721196158356,0.8379433,162.02,162.01,46.24416485]
[1721196160965,0.8379433,162.02,162.01,45.01]
[1721196163658,0.8379433,162.02,162.01,35.01]
[1721196165156,0.8379433,162.02,162.01,36.07409298]
[1721196165356,0.8379433,162.02,162.01,35.01]
[1721196165980,0.8379433,162.02,162.01,36.24400763]
[1721196167380,0.8379433,162.02,162.01,35.01]
[1721196168863,0.8379433,162.02,162.01,34.67]
[1721196169076,0.8379433,162.02,162.01,14.67]
[1721196170273,0.8379433,162.02,162.01,14.84]
[1721196170483,0.8379433,162.02,162.01,34.84]
[1721196170984,0.8379433,162.02,162.01,44.84]
[1721196171189,0.8379433,162.02,162.01,45.01]
[1721196171558,0.8379433,162.02,162.01,30.34]
[1721196171757,0.8379433,162.02,162.01,45.01]
[1721196175153,0.8379433,162.02,162.01,34.84]
[1721196175355,0.8379433,162.02,162.01,20.0]
[1721196175555,0.8379433,162.02,162.01,14.67]
[1721196176367,0.8379433,162.02,161.96,26.37138508]
[1721196176565,0.8379433,162.02,162.01,14.67]
[1721196176870,0.8379433,162.02,162.0,14.67]
[1721196177491,0.8379433,162.02,162.01,14.67]
[1721196178857,0.8379433,162.02,161.96,6.37138508]
[1721196179085,0.8379433,162.02,161.99,14.67]
[1721196180356,0.8379433,162.02,161.96,10.0]
[1721196180577,0.8379433,162.02,162.01,14.67]
[1721196181171,0.8379433,162.02,162.01,16.07402611]
[1721196181490,0.5519433,162.02,162.01,26.07402611]
[1721196181694,14.67,162.14,162.02,10.0]
[1721196181995,14.67,162.12,162.07,14.67]
[1721196182185,1.54236825,162.11,162.07,14.67]
[1721196182390,1.54236825,162.11,162.03,20.17]
[1721196182391,1.54236825,162.11,162.08,14.67]
[1721196183187,16.21236535,162.12,162.07,14.67]
[1721196184475,1.54236535,162.12,162.06,14.67]
[1721196184670,14.67,162.11,162.06,14.67]
[1721196184977,1.54236716,162.1,162.06,14.67]
[1721196185381,1.54236716,162.1,162.07,14.67]
[1721196185588,1.54236431,162.11,162.07,14.67]
[1721196187381,16.21236431,162.11,162.06,14.67]
[1721196187577,1.54236381,162.1,162.06,14.67]
[1721196188896,16.21236359,162.13,162.08,14.67]
[1721196189071,1.54236359,162.13,162.09,14.67]
[1721196189277,1.54222094,162.14,162.1,15.90368427]
[1721196189609,36.1361,162.15,162.05,0.17]
[1721196189610,21.4661,162.15,162.11,1.23366744]
[1721196189895,21.4661,162.15,162.13,14.67]
[1721196191370,2.37991322,162.18,162.14,14.67]
[1721196191603,2.37991322,162.18,162.15,14.67]
[1721196192074,2.37991322,162.18,162.1,1.23340859]
[1721196192075,2.37991322,162.18,162.16,14.67]
[1721196192275,0.8379433,162.18,162.17,14.67]
[1721196194402,0.8379433,162.18,162.17,0.17]
[1721196195087,0.8379433,162.18,162.15,20.0]
[1721196195088,0.8379433,162.18,162.16,0.17]
[1721196195286,0.8379433,162.18,162.16,1.40291282]
[1721196195603,0.8379433,162.18,162.17,30.62287128]
[1721196195896,0.8379433,162.18,162.17,50.79287128]
[1721196196070,0.8379433,162.18,162.17,49.39]
[1721196196270,0.8379433,162.18,162.17,20.17]
[1721196196487,0.8379433,162.18,162.17,0.17]
[1721196196686,0.8379433,162.18,162.17,1.40286228]
[1721196196889,0.8379433,162.18,162.17,0.17]
[1721196197899,0.8379433,162.18,162.17,20.17]
[1721196198803,0.8379433,162.18,162.17,49.56]
[1721196199003,0.8379433,162.18,162.17,50.79282009]
[1721196199398,0.8379433,162.18,162.17,49.56]
[1721196203206,0.8379433,162.18,162.17,50.79282117]
[1721196204205,0.8379433,162.18,162.17,49.56]
[1721196204501,0.8379433,162.18,162.17,20.34]
[1721196206599,0.8379433,162.18,162.17,20.0]
[1721196208113,0.8379433,162.18,162.17,20.17]
[1721196208498,0.8379433,162.18,162.17,20.34]
[1721196213896,0.8379433,162.18,162.17,42.4077]
[1721196214098,1.54054019,162.31,162.22,10.0]
[1721196214296,1.54054019,162.31,162.23,49.56]
[1721196215516,21.0441,162.32,162.24,10.0]
[1721196215739,21.0441,162.32,162.25,20.17]
[1721196215901,21.0441,162.32,162.25,20.0]
[1721196216090,21.0441,162.32,162.26,1.23231753]
[1721196216416,21.0441,162.32,162.29,14.59]
[1721196216918,21.0441,162.32,162.3,14.59]
[1721196218116,1.54027496,162.34,162.31,14.59]
[1721196219219,1.54027496,162.34,162.3,14.59]
[1721196221127,1.54027496,162.34,162.25,10.0]
[1721196221128,16.13027496,162.34,162.25,10.0]
[1721196221332,16.13027496,162.34,162.29,14.59]
[1721196221632,1.54027496,162.34,162.3,14.59]
[1721196225723,1.54027496,162.34,162.26,20.17]
[1721196225724,0.8379433,162.35,162.32,14.59]
[1721196225927,2.37805996,162.35,162.32,14.59]
[1721196226133,0.8379433,162.35,162.33,14.59]
[1721196226727,0.8379433,162.35,162.34,14.59]
[1721196228049,0.8379433,162.35,162.33,14.59]
[1721196228530,0.8379433,162.35,162.34,14.59]
[1721196229451,0.8379433,162.35,162.27,10.0]
[1721196229634,0.8379433,162.35,162.32,14.59]
[1721196229831,0.8379433,162.35,162.33,14.59]
[1721196230034,0.8379433,162.35,162.26,20.0]
[1721196230035,15.4279433,162.35,162.26,20.0]
[1721196230225,14.59,162.33,162.27,14.59]
[1721196230425,22.6615,162.3,162.21,10.0]
[1721196230622,1.54055362,162.29,162.19,10.0]
[1721196230846,14.59,162.28,162.23,14.59]
[1721196231025,1.54075226,162.27,162.23,14.59]
[1721196231230,14.59,162.28,162.23,14.59]
[1721196231426,1.54075348,162.29,162.24,14.59]
[1721196231427,16.13075139,162.29,162.24,14.59]
[1721196231630,22.6615,162.3,162.26,14.59]
[1721196231847,24.20204201,162.3,162.26,14.59]
[1721196232068,24.20204201,162.3,162.25,14.59]
[1721196232660,22.6615,162.3,162.26,14.59]
[1721196232943,24.20202063,162.3,162.26,14.59]
[1721196233249,22.6615,162.3,162.26,14.59]
[1721196233436,22.6615,162.3,162.27,14.59]
[1721196233757,1.5404571,162.29,162.21,10.0]
[1721196233939,1.5404571,162.29,162.22,20.34]
[1721196234136,1.5404571,162.29,162.25,14.59]
[1721196235440,1.5404571,162.29,162.22,20.17]
[1721196235642,16.1304571,162.29,162.24,14.59]
[1721196235948,1.5404571,162.29,162.24,14.59]
[1721196237428,16.1304571,162.29,162.24,14.59]
[1721196237633,1.5404571,162.29,162.24,14.59]
[1721196238234,22.6615,162.3,162.25,15.82258158]
[1721196238549,1.54057484,162.29,162.25,14.59]
[1721196239755,1.54057484,162.29,162.2,20.0]
[1721196239933,16.13057484,162.29,162.24,14.59]
[1721196240953,14.59,162.28,162.2,20.0]
[1721196241258,1.5407844,162.27,162.22,14.59]
[1721196241434,1.5407844,162.27,162.23,20.0]
[1721196241831,1.54078339,162.28,162.24,14.59]
[1721196242132,22.6615,162.3,162.27,14.59]
[1721196242339,14.59,162.33,162.28,15.82231622]
[1721196242643,22.1087,162.34,162.24,14.59]
[1721196242644,23.64900151,162.34,162.29,14.59]
[1721196242964,38.23900151,162.34,162.29,14.59]
[1721196243142,38.23900151,162.34,162.25,0.17]
[1721196243143,14.59,162.33,162.25,0.17]
[1721196243323,23.64900151,162.34,162.27,14.59]
[1721196243324,16.13051373,162.32,162.27,14.59]
[1721196244738,14.59,162.31,162.26,14.59]
[1721196244956,1.54047491,162.3,162.26,14.59]
[1721196245167,16.13047491,162.3,162.25,14.59]
[1721196245334,14.59,162.31,162.26,34.59]
[1721196245661,1.5404872,162.3,162.27,14.59]
[1721196245830,1.5404872,162.3,162.26,14.59]
[1721196246564,14.59,162.32,162.27,14.59]
[1721196246747,1.5404669,162.31,162.27,14.59]
[1721196247131,16.1304669,162.31,162.24,1.23238012]
[1721196247332,16.1304669,162.31,162.25,14.59]
[1721196247639,1.54061148,162.3,162.26,21.23248918]
[1721196247835,1.54061148,162.3,162.26,35.82248918]
[1721196248131,1.54061148,162.3,162.27,14.59]
[1721196248537,1.5405699,162.31,162.27,14.59]
[1721196249038,16.13046629,162.32,162.27,14.59]
[1721196249266,1.54038294,162.33,162.29,14.59]
[1721196250331,1.54028621,162.32,162.29,14.59]
[1721196250650,1.54028621,162.32,162.28,14.59]
[1721196250834,16.13028608,162.33,162.28,14.59]
[1721196251544,1.54028608,162.33,162.29,15.82222695]
[1721196251743,22.1087,162.34,162.29,14.59]
[1721196251948,38.23890984,162.34,162.29,14.59]
[1721196252758,23.64890984,162.34,162.29,14.59]
[1721196253352,38.23890984,162.34,162.29,14.59]
[1721196253655,22.1087,162.34,162.31,14.59]
[1721196253854,1.54007647,162.33,162.26,20.0]
[1721196254055,1.54007647,162.33,162.29,14.59]
[1721196254254,1.54020077,162.33,162.25,20.0]
[1721196254579,1.54020077,162.33,162.29,14.59]
[1721196254860,22.1087,162.34,162.3,14.59]
[1721196255049,23.64886512,162.34,162.3,14.59]
[1721196255554,36.6987,162.34,162.29,14.59]
[1721196255857,1.5400788,162.33,162.29,14.59]
[1721196256053,1.54017109,162.32,162.25,20.0]
[1721196256241,1.54028576,162.33,162.29,14.59]
[1721196257040,1.54027688,162.32,162.28,14.59]
[1721196257245,1.54027688,162.32,162.29,20.0]
[1721196257566,1.54027688,162.32,162.25,20.0]
[1721196257750,1.54027688,162.32,162.26,0.17]
[1721196258558,1.54033035,162.33,162.26,1.40226428]
[1721196258952,1.54033035,162.33,162.26,0.17]
[1721196260175,1.54033035,162.33,162.26,1.40221455]
[1721196262669,23.64896697,162.34,162.26,1.40221455]
[1721196263672,23.64896697,162.34,162.26,0.17]
[1721196263868,23.64896697,162.34,162.26,0.34]
[1721196264171,38.23896697,162.34,162.26,0.17]
[1721196269477,14.59,162.33,162.26,0.17]
[1721196269653,1.54031229,162.32,162.26,0.17]
[1721196270349,1.54031229,162.32,162.25,20.0]
[1721196270578,1.54038675,162.33,162.25,20.0]
[1721196270879,1.54038669,162.32,162.25,20.0]
[1721196271380,1.5403867,162.33,162.26,1.23230936]
[1721196271670,16.13027029,162.32,162.25,21.23221622]
[1721196271885,16.13027029,162.32,162.27,14.59]
[1721196272563,1.54047099,162.33,162.28,14.59]
[1721196272766,1.54047099,162.33,162.29,14.59]
[1721196272973,1.54027364,162.32,162.29,14.59]
[1721196273357,1.54028731,162.33,162.29,14.59]
[1721196274269,1.54028731,162.33,162.28,14.59]
[1721196275990,14.59,162.31,162.25,14.59]
[1721196276153,16.13069914,162.3,162.25,14.59]
[1721196276483,0.17,162.32,162.25,14.59]
[1721196276484,14.59,162.31,162.25,14.59]
[1721196276679,1.54056885,162.3,162.26,14.59]
[1721196277354,1.54056885,162.3,162.27,14.59]
[1721196277756,1.54056885,162.3,162.23,6.37843237]
[1721196277757,1.54056711,162.31,162.26,14.59]
[1721196277985,16.13056711,162.31,162.26,14.59]
[1721196278675,14.59,162.3,162.25,14.59]
[1721196278863,14.59,162.28,162.23,6.37843237]
[1721196279070,16.13090849,162.27,162.21,14.59]
[1721196279278,1.54095139,162.26,162.21,14.59]
[1721196280171,14.59,162.25,162.19,6.38179007]
[1721196280392,16.13110801,162.24,162.19,20.97179007]
[1721196280684,14.59,162.24,162.19,20.97179007]
[1721196280861,14.59,162.25,162.19,20.97179007]
[1721196281061,1.54109205,162.24,162.19,20.97179007]
[1721196281280,1.54109157,162.27,162.21,14.59]
[1721196281487,1.5409511,162.26,162.22,14.59]
[1721196281782,1.54093141,162.28,162.24,14.59]
[1721196281957,1.54093141,162.28,162.25,14.59]
[1721196282571,22.0677,162.29,162.26,14.59]
[1721196282856,22.0677,162.29,162.27,14.59]
[1721196284062,22.0677,162.29,162.21,10.0]
[1721196284063,22.0677,162.29,162.26,14.59]
[1721196285570,22.0677,162.29,162.21,10.0]
[1721196285571,1.5405693,162.28,162.25,14.59]
[1721196286672,1.5405693,162.28,162.24,14.59]
[1721196287575,1.5405693,162.28,162.25,14.59]
[1721196288863,1.5405693,162.28,162.26,14.59]
[1721196290076,22.0677,162.29,162.27,14.59]
[1721196290293,6.1603,162.33,162.28,14.59]
[1721196290294,1.54056648,162.33,162.28,14.59]
[1721196290492,1.54056648,162.33,162.31,14.59]
[1721196290796,1.54056648,162.33,162.3,14.59]
[1721196293483,22.2605,162.34,162.31,14.59]
[1721196293793,23.8006597,162.34,162.31,14.59]
[1721196294194,22.2605,162.34,162.31,14.59]
[1721196294574,22.2605,162.34,162.32,14.59]